[Event "Early-Titled-Tuesday-Blitz-May-07-2024"]
[Site "Chess.com"]
[Date "2024.05.07"]
[Round "3"]
[White "GMKrikor"]
[Black "LimeInTheCoconut"]
[Result "1-0"]
[WhiteElo "2853"]
[BlackElo "2596"]
[TimeControl "180+1"]
[EndTime "8:31:46 PDT"]
[Termination "GMKrikor won by checkmate"]

1. Nf3 {[%clk 0:02:55.4]} 1... Nf6 {[%clk 0:02:59.5]} 2. c4 {[%clk 0:02:55.5]}
2... c5 {[%clk 0:02:59.2]} 3. Nc3 {[%clk 0:02:55.5]} 3... g6 {[%clk 0:02:58]} 4.
e4 {[%clk 0:02:50.1]} 4... Nc6 {[%clk 0:02:54.4]} 5. d4 {[%clk 0:02:50.1]} 5...
cxd4 {[%clk 0:02:55.3]} 6. Nxd4 {[%clk 0:02:50.6]} 6... d6 {[%clk 0:02:55.9]} 7.
Be2 {[%clk 0:02:49.4]} 7... Nxd4 {[%clk 0:02:55.7]} 8. Qxd4 {[%clk 0:02:49]}
8... Bg7 {[%clk 0:02:56.5]} 9. Be3 {[%clk 0:02:49.5]} 9... O-O {[%clk
0:02:56.3]} 10. Qd2 {[%clk 0:02:50.1]} 10... Be6 {[%clk 0:02:57.1]} 11. O-O
{[%clk 0:02:43.1]} 11... Qa5 {[%clk 0:02:52.7]} 12. Rfc1 {[%clk 0:02:24.1]}
12... Rfc8 {[%clk 0:02:52.2]} 13. b3 {[%clk 0:02:24.4]} 13... a6 {[%clk
0:02:52.8]} 14. Rab1 {[%clk 0:02:24.4]} 14... b5 {[%clk 0:02:44]} 15. b4 {[%clk
0:02:21.7]} 15... Qd8 {[%clk 0:02:38.5]} 16. cxb5 {[%clk 0:02:21.3]} 16... axb5
{[%clk 0:02:32]} 17. Bxb5 {[%clk 0:02:18.4]} 17... Rxc3 {[%clk 0:00:24]} 18.
Qxc3 {[%clk 0:02:19.3]} 18... Nxe4 {[%clk 0:00:22.8]} 19. Qc2 {[%clk 0:01:58.6]}
19... Nc3 {[%clk 0:00:19.3]} 20. a4 {[%clk 0:01:49.6]} 20... Nxb5 {[%clk
0:00:12.1]} 21. axb5 {[%clk 0:01:49.5]} 21... Bf5 {[%clk 0:00:12.9]} 22. Qc6
{[%clk 0:01:38.5]} 22... Bxb1 {[%clk 0:00:13.3]} 23. Rxb1 {[%clk 0:01:37.8]}
23... Rc8 {[%clk 0:00:14]} 24. Qa6 {[%clk 0:01:34.9]} 24... d5 {[%clk
0:00:13.1]} 25. Bc5 {[%clk 0:01:32.4]} 25... Ra8 {[%clk 0:00:09.2]} 26. Qc6
{[%clk 0:01:27.8]} 26... Rc8 {[%clk 0:00:09]} 27. Bxe7 {[%clk 0:01:02.9]} 27...
Rxc6 {[%clk 0:00:04.9]} 28. Bxd8 {[%clk 0:01:03.1]} 28... Rc8 {[%clk 0:00:02.7]}
29. Ba5 {[%clk 0:00:55.6]} 29... d4 {[%clk 0:00:01.8]} 30. Rd1 {[%clk
0:00:55.3]} 30... Rb8 {[%clk 0:00:01.3]} 31. b6 {[%clk 0:00:54.8]} 31... f5
{[%clk 0:00:01.3]} 32. Kf1 {[%clk 0:00:53.9]} 32... Kf7 {[%clk 0:00:02]} 33. Rc1
{[%clk 0:00:53.8]} 33... Ke6 {[%clk 0:00:02.8]} 34. Ke2 {[%clk 0:00:54.1]} 34...
Kd5 {[%clk 0:00:03.1]} 35. Rc5+ {[%clk 0:00:52]} 35... Kd6 {[%clk 0:00:03.5]}
36. Kd3 {[%clk 0:00:51.4]} 36... Bf6 {[%clk 0:00:03.1]} 37. Kc4 {[%clk
0:00:40.7]} 37... Rb7 {[%clk 0:00:02.3]} 38. Rd5+ {[%clk 0:00:34.5]} 38... Kc6
{[%clk 0:00:01.3]} 39. b5# {[%clk 0:00:33.8]} 1-0

[Event "Early-Titled-Tuesday-Blitz-May-07-2024"]
[Site "Chess.com"]
[Date "2024.05.07"]
[Round "3"]
[White "sewlins"]
[Black "AsaHoffmann"]
[Result "0-1"]
[WhiteElo "2212"]
[BlackElo "2413"]
[TimeControl "180+1"]
[EndTime "8:31:47 PDT"]
[Termination "AsaHoffmann won on time"]

1. e4 {[%clk 0:02:59.6]} 1... d6 {[%clk 0:02:50.5]} 2. d4 {[%clk 0:02:57.2]}
2... c6 {[%clk 0:02:50.4]} 3. Nc3 {[%clk 0:02:47.3]} 3... a6 {[%clk 0:02:50]} 4.
a4 {[%clk 0:02:39.9]} 4... Nf6 {[%clk 0:02:48.4]} 5. Nf3 {[%clk 0:02:39.7]} 5...
Bg4 {[%clk 0:02:46.5]} 6. Be2 {[%clk 0:02:34.2]} 6... e6 {[%clk 0:02:46.2]} 7.
h3 {[%clk 0:02:30.7]} 7... Bh5 {[%clk 0:02:44.2]} 8. O-O {[%clk 0:02:19.7]} 8...
Be7 {[%clk 0:02:41.8]} 9. e5 {[%clk 0:02:15.1]} 9... dxe5 {[%clk 0:02:38.3]} 10.
dxe5 {[%clk 0:02:16]} 10... Nd5 {[%clk 0:02:37.6]} 11. Ne4 {[%clk 0:02:15.2]}
11... h6 {[%clk 0:02:29.8]} 12. Nd6+ {[%clk 0:02:07.7]} 12... Bxd6 {[%clk
0:02:26.3]} 13. exd6 {[%clk 0:02:08.4]} 13... Nd7 {[%clk 0:02:22.4]} 14. c4
{[%clk 0:02:05]} 14... N5f6 {[%clk 0:02:20.5]} 15. Bf4 {[%clk 0:01:55.3]} 15...
O-O {[%clk 0:02:15.1]} 16. Qc2 {[%clk 0:01:19.9]} 16... a5 {[%clk 0:02:10.7]}
17. Rfd1 {[%clk 0:01:16.3]} 17... Qb6 {[%clk 0:02:07.9]} 18. Be3 {[%clk
0:00:55.2]} 18... Qd8 {[%clk 0:02:05.9]} 19. c5 {[%clk 0:00:55]} 19... Nd5
{[%clk 0:02:04.9]} 20. Bd4 {[%clk 0:00:49.9]} 20... Bg6 {[%clk 0:01:59.6]} 21.
Qb3 {[%clk 0:00:47.2]} 21... b6 {[%clk 0:01:55.8]} 22. cxb6 {[%clk 0:00:45]}
22... N7xb6 {[%clk 0:01:50.7]} 23. Rac1 {[%clk 0:00:40.4]} 23... Rb8 {[%clk
0:01:44.2]} 24. Ne5 {[%clk 0:00:27.8]} 24... Nd7 {[%clk 0:01:19.2]} 25. Qg3
{[%clk 0:00:27.1]} 25... Nxe5 {[%clk 0:01:17.4]} 26. Qxe5 {[%clk 0:00:23.2]}
26... Qf6 {[%clk 0:01:12.6]} 27. Rxc6 {[%clk 0:00:20.6]} 27... Qxe5 {[%clk
0:01:07]} 28. Bxe5 {[%clk 0:00:21.5]} 28... Rfd8 {[%clk 0:01:05.4]} 29. Bc4
{[%clk 0:00:19.3]} 29... Rb4 {[%clk 0:00:56.9]} 30. Bxd5 {[%clk 0:00:19.2]}
30... exd5 {[%clk 0:00:56.7]} 31. Rxd5 {[%clk 0:00:19.9]} 31... Be4 {[%clk
0:00:56.5]} 32. Rcc5 {[%clk 0:00:15.4]} 32... Bxd5 {[%clk 0:00:55.4]} 33. Rxd5
{[%clk 0:00:16.3]} 33... Rxa4 {[%clk 0:00:55.4]} 34. d7 {[%clk 0:00:15.8]} 34...
Rc4 {[%clk 0:00:53.2]} 35. Kh2 {[%clk 0:00:11.8]} 35... f6 {[%clk 0:00:53.1]}
36. Bg3 {[%clk 0:00:10.5]} 36... Kf7 {[%clk 0:00:53.1]} 37. b3 {[%clk
0:00:09.6]} 37... Rc6 {[%clk 0:00:50.5]} 38. Rxa5 {[%clk 0:00:05.5]} 38... Rxd7
{[%clk 0:00:50]} 39. Rb5 {[%clk 0:00:04.8]} 39... g6 {[%clk 0:00:48.3]} 40. Rb8
{[%clk 0:00:04.8]} 40... h5 {[%clk 0:00:47.9]} 41. h4 {[%clk 0:00:02.7]} 41...
g5 {[%clk 0:00:46.8]} 42. Rb5 {[%clk 0:00:00.2]} 42... Re6 {[%clk 0:00:45.8]}
0-1

[Event "Early-Titled-Tuesday-Blitz-May-07-2024"]
[Site "Chess.com"]
[Date "2024.05.07"]
[Round "3"]
[White "Aminazinas"]
[Black "maksimys18"]
[Result "0-1"]
[WhiteElo "2652"]
[BlackElo "2512"]
[TimeControl "180+1"]
[EndTime "8:31:49 PDT"]
[Termination "maksimys18 won by checkmate"]

1. e4 {[%clk 0:03:00.9]} 1... e6 {[%clk 0:02:58.8]} 2. d4 {[%clk 0:03:01]} 2...
d5 {[%clk 0:02:59]} 3. Nc3 {[%clk 0:03:01.2]} 3... Bb4 {[%clk 0:02:58.8]} 4.
exd5 {[%clk 0:03:00.8]} 4... exd5 {[%clk 0:02:58.1]} 5. Nf3 {[%clk 0:03:01.1]}
5... Ne7 {[%clk 0:02:57]} 6. Bd3 {[%clk 0:03:01.2]} 6... O-O {[%clk 0:02:56.2]}
7. O-O {[%clk 0:03:00.6]} 7... c6 {[%clk 0:02:53.2]} 8. Ne2 {[%clk 0:02:56.8]}
8... Bf5 {[%clk 0:02:51.9]} 9. Ng3 {[%clk 0:02:56.2]} 9... Bxd3 {[%clk
0:02:48.1]} 10. Qxd3 {[%clk 0:02:57.1]} 10... Ng6 {[%clk 0:02:47.4]} 11. Nf5
{[%clk 0:02:53.7]} 11... Nd7 {[%clk 0:02:45.7]} 12. Bg5 {[%clk 0:02:53.2]} 12...
f6 {[%clk 0:02:36.4]} 13. Be3 {[%clk 0:02:45.6]} 13... Qc7 {[%clk 0:02:20.6]}
14. c3 {[%clk 0:02:44.6]} 14... Bd6 {[%clk 0:02:17.5]} 15. Rfe1 {[%clk
0:02:37.2]} 15... Rae8 {[%clk 0:02:15.3]} 16. Bd2 {[%clk 0:02:31.8]} 16... Nb6
{[%clk 0:02:02.3]} 17. b3 {[%clk 0:02:25.5]} 17... Nc8 {[%clk 0:02:00.7]} 18.
Re2 {[%clk 0:02:17.2]} 18... Qd7 {[%clk 0:01:55.8]} 19. Rae1 {[%clk 0:02:01.4]}
19... Rxe2 {[%clk 0:01:54.8]} 20. Rxe2 {[%clk 0:02:01.4]} 20... Re8 {[%clk
0:01:53.7]} 21. g3 {[%clk 0:01:53.2]} 21... Rxe2 {[%clk 0:01:47.3]} 22. Qxe2
{[%clk 0:01:45.7]} 22... Qxf5 {[%clk 0:01:45.7]} 23. Qe8+ {[%clk 0:01:45.5]}
23... Nf8 {[%clk 0:01:40.7]} 24. Kg2 {[%clk 0:01:44.4]} 24... Qe6 {[%clk
0:01:18.9]} 25. Qd8 {[%clk 0:01:43.7]} 25... Nb6 {[%clk 0:00:56]} 26. c4 {[%clk
0:01:24.4]} 26... Qd7 {[%clk 0:00:48.4]} 27. Qxd7 {[%clk 0:01:21]} 27... Nbxd7
{[%clk 0:00:38.2]} 28. cxd5 {[%clk 0:01:18.4]} 28... cxd5 {[%clk 0:00:36.1]} 29.
Ne1 {[%clk 0:01:19]} 29... Kf7 {[%clk 0:00:21.9]} 30. Nc2 {[%clk 0:01:19.6]}
30... Ke6 {[%clk 0:00:22.3]} 31. f3 {[%clk 0:01:20.3]} 31... Nb6 {[%clk
0:00:22.5]} 32. Kf2 {[%clk 0:01:20.9]} 32... Nfd7 {[%clk 0:00:22.9]} 33. Ke3
{[%clk 0:01:21.5]} 33... Nc8 {[%clk 0:00:23.2]} 34. g4 {[%clk 0:01:22.2]} 34...
Bxh2 {[%clk 0:00:22.9]} 35. Kd3 {[%clk 0:01:22]} 35... g5 {[%clk 0:00:23.1]} 36.
Ne3 {[%clk 0:01:22.3]} 36... Bf4 {[%clk 0:00:23.1]} 37. Nf5 {[%clk 0:01:22.8]}
37... Bxd2 {[%clk 0:00:23.2]} 38. Kxd2 {[%clk 0:01:23.7]} 38... Nd6 {[%clk
0:00:23.1]} 39. Ng3 {[%clk 0:01:23.3]} 39... Nf8 {[%clk 0:00:21.9]} 40. Kd3
{[%clk 0:01:23]} 40... Ng6 {[%clk 0:00:22.4]} 41. Nf1 {[%clk 0:01:22.8]} 41...
Nf4+ {[%clk 0:00:23.3]} 42. Ke3 {[%clk 0:01:23.3]} 42... h5 {[%clk 0:00:23.6]}
43. gxh5 {[%clk 0:01:22.5]} 43... Nxh5 {[%clk 0:00:24.5]} 44. Nd2 {[%clk
0:01:22.6]} 44... Nf5+ {[%clk 0:00:24.3]} 45. Kd3 {[%clk 0:01:21.7]} 45... Nf4+
{[%clk 0:00:23.2]} 46. Kc2 {[%clk 0:01:21.3]} 46... Ne3+ {[%clk 0:00:22.4]} 47.
Kc3 {[%clk 0:01:20.9]} 47... Nf5 {[%clk 0:00:22.2]} 48. b4 {[%clk 0:01:20.7]}
48... Ne2+ {[%clk 0:00:22.5]} 49. Kd3 {[%clk 0:01:21.2]} 49... Nexd4 {[%clk
0:00:23.4]} 50. a4 {[%clk 0:01:21.5]} 50... Nc6 {[%clk 0:00:20.8]} 51. b5 {[%clk
0:01:21]} 51... Ne5+ {[%clk 0:00:19]} 52. Ke2 {[%clk 0:01:21.3]} 52... d4 {[%clk
0:00:19.2]} 53. Nb3 {[%clk 0:01:21.2]} 53... d3+ {[%clk 0:00:18.6]} 54. Kd2
{[%clk 0:01:21.8]} 54... Kd5 {[%clk 0:00:19.2]} 55. Na5 {[%clk 0:01:21.8]} 55...
Kd4 {[%clk 0:00:19.2]} 56. Nxb7 {[%clk 0:01:21.6]} 56... Nxf3+ {[%clk
0:00:19.6]} 57. Kd1 {[%clk 0:01:22.2]} 57... Ne3+ {[%clk 0:00:18.6]} 58. Kc1
{[%clk 0:01:22.8]} 58... d2+ {[%clk 0:00:19.1]} 59. Kb2 {[%clk 0:01:23.7]} 59...
d1=Q {[%clk 0:00:18.4]} 60. Nd6 {[%clk 0:01:24.6]} 60... Qc2+ {[%clk 0:00:18.5]}
61. Ka3 {[%clk 0:01:25.5]} 61... Nc4+ {[%clk 0:00:17.5]} 62. Kb4 {[%clk
0:01:25.3]} 62... Nxd6 {[%clk 0:00:17.1]} 63. Ka5 {[%clk 0:01:24.8]} 63... Qc3+
{[%clk 0:00:16.4]} 64. Ka6 {[%clk 0:01:25.2]} 64... Qc8+ {[%clk 0:00:15.6]} 65.
Ka5 {[%clk 0:01:25.1]} 65... Qc7+ {[%clk 0:00:15.8]} 66. b6 {[%clk 0:01:24.7]}
66... Qxb6# {[%clk 0:00:15.8]} 0-1

[Event "Early-Titled-Tuesday-Blitz-May-07-2024"]
[Site "Chess.com"]
[Date "2024.05.07"]
[Round "3"]
[White "Zapateado"]
[Black "masnyszachistaaa"]
[Result "0-1"]
[WhiteElo "2389"]
[BlackElo "2586"]
[TimeControl "180+1"]
[EndTime "8:31:49 PDT"]
[Termination "masnyszachistaaa won by checkmate"]

1. c4 {[%clk 0:03:00.9]} 1... c6 {[%clk 0:02:57.6]} 2. e4 {[%clk 0:03:00.6]}
2... d5 {[%clk 0:02:52.1]} 3. cxd5 {[%clk 0:03:01.5]} 3... cxd5 {[%clk
0:02:52.9]} 4. exd5 {[%clk 0:03:02.4]} 4... Qxd5 {[%clk 0:02:50.5]} 5. Nc3
{[%clk 0:03:03]} 5... Qd8 {[%clk 0:02:50.6]} 6. Nf3 {[%clk 0:03:02.9]} 6... Nf6
{[%clk 0:02:50.2]} 7. Bc4 {[%clk 0:03:03.5]} 7... e6 {[%clk 0:02:45.1]} 8. O-O
{[%clk 0:03:04]} 8... Be7 {[%clk 0:02:44.1]} 9. d4 {[%clk 0:03:04.7]} 9... O-O
{[%clk 0:02:44.2]} 10. Qe2 {[%clk 0:03:04.7]} 10... b6 {[%clk 0:02:43.2]} 11.
Bf4 {[%clk 0:02:42.7]} 11... Bb7 {[%clk 0:02:39.4]} 12. Rfe1 {[%clk 0:02:34.8]}
12... Nc6 {[%clk 0:02:32.1]} 13. Rad1 {[%clk 0:02:29.1]} 13... Nb4 {[%clk
0:02:26]} 14. Ne5 {[%clk 0:01:43.6]} 14... Nbd5 {[%clk 0:02:23.6]} 15. Bg3
{[%clk 0:01:40.6]} 15... Rc8 {[%clk 0:02:23.2]} 16. Nxd5 {[%clk 0:01:33.5]}
16... Bxd5 {[%clk 0:02:17.5]} 17. Ba6 {[%clk 0:01:26.6]} 17... Ra8 {[%clk
0:02:06]} 18. a3 {[%clk 0:01:13.7]} 18... Ne4 {[%clk 0:01:46.1]} 19. Bd3 {[%clk
0:00:52.6]} 19... Nxg3 {[%clk 0:01:44.9]} 20. hxg3 {[%clk 0:00:53.5]} 20... Bf6
{[%clk 0:01:38.8]} 21. Kh2 {[%clk 0:00:28.5]} 21... g6 {[%clk 0:01:30.7]} 22. g4
{[%clk 0:00:25.3]} 22... Rc8 {[%clk 0:01:20.5]} 23. Ba6 {[%clk 0:00:21.6]} 23...
Rc7 {[%clk 0:01:19.8]} 24. f4 {[%clk 0:00:19.5]} 24... Bb3 {[%clk 0:01:14.8]}
25. Rd3 {[%clk 0:00:15]} 25... Rc2 {[%clk 0:01:11.4]} 26. Qf1 {[%clk 0:00:09.6]}
26... Rxb2 {[%clk 0:01:06.7]} 27. Rb1 {[%clk 0:00:07.7]} 27... Rxb1 {[%clk
0:00:50.7]} 28. Qxb1 {[%clk 0:00:08.6]} 28... Bd5 {[%clk 0:00:48.7]} 29. Rh3
{[%clk 0:00:09]} 29... Bxe5 {[%clk 0:00:26.4]} 30. dxe5 {[%clk 0:00:07.9]} 30...
Bc6 {[%clk 0:00:27]} 31. Bd3 {[%clk 0:00:06.8]} 31... Qd5 {[%clk 0:00:25.9]} 32.
Rg3 {[%clk 0:00:07.2]} 32... Rd8 {[%clk 0:00:25.7]} 33. Bc2 {[%clk 0:00:07]}
33... Qd2 {[%clk 0:00:25.4]} 34. f5 {[%clk 0:00:06.5]} 34... Qh6+ {[%clk
0:00:24.5]} 35. Rh3 {[%clk 0:00:05.7]} 35... Qf4+ {[%clk 0:00:24.1]} 36. Kg1
{[%clk 0:00:06.2]} 36... Qxg4 {[%clk 0:00:17.5]} 37. fxg6 {[%clk 0:00:06.1]}
37... hxg6 {[%clk 0:00:17.9]} 38. Rd3 {[%clk 0:00:05.4]} 38... Qxg2# {[%clk
0:00:17.8]} 0-1

[Event "Early-Titled-Tuesday-Blitz-May-07-2024"]
[Site "Chess.com"]
[Date "2024.05.07"]
[Round "3"]
[White "faraone99"]
[Black "Kostina_Nadezhda"]
[Result "1-0"]
[WhiteElo "2524"]
[BlackElo "2316"]
[TimeControl "180+1"]
[EndTime "8:31:56 PDT"]
[Termination "faraone99 won on time"]

1. e4 {[%clk 0:03:00.9]} 1... c6 {[%clk 0:02:59.9]} 2. d4 {[%clk 0:02:58.4]}
2... d5 {[%clk 0:03:00.3]} 3. exd5 {[%clk 0:02:58.6]} 3... cxd5 {[%clk
0:03:01.2]} 4. Bd3 {[%clk 0:02:59.1]} 4... Nc6 {[%clk 0:03:01.9]} 5. c3 {[%clk
0:02:59.2]} 5... Nf6 {[%clk 0:03:02.1]} 6. Bf4 {[%clk 0:02:58.9]} 6... Bg4
{[%clk 0:03:01.4]} 7. Qb3 {[%clk 0:02:58.2]} 7... Na5 {[%clk 0:03:01.4]} 8. Qa4+
{[%clk 0:02:57.7]} 8... Bd7 {[%clk 0:03:02.1]} 9. Qc2 {[%clk 0:02:57.8]} 9... e6
{[%clk 0:03:00]} 10. Nf3 {[%clk 0:02:57.5]} 10... Rc8 {[%clk 0:02:54.9]} 11.
Nbd2 {[%clk 0:02:57]} 11... Be7 {[%clk 0:02:53.7]} 12. Ne5 {[%clk 0:02:57]}
12... O-O {[%clk 0:02:53.5]} 13. O-O {[%clk 0:02:57.2]} 13... Nc6 {[%clk
0:02:49.6]} 14. Ndf3 {[%clk 0:02:56.3]} 14... Nxe5 {[%clk 0:02:48.3]} 15. Nxe5
{[%clk 0:02:56.2]} 15... a6 {[%clk 0:02:41]} 16. a4 {[%clk 0:02:53.4]} 16... Bc6
{[%clk 0:02:37.7]} 17. Qe2 {[%clk 0:02:50.6]} 17... Nd7 {[%clk 0:02:37.3]} 18.
Rfe1 {[%clk 0:02:26.7]} 18... Nxe5 {[%clk 0:02:36.2]} 19. Bxe5 {[%clk
0:02:27.6]} 19... Bf6 {[%clk 0:02:36.1]} 20. Qf3 {[%clk 0:02:23.9]} 20... Bxe5
{[%clk 0:02:34.1]} 21. Rxe5 {[%clk 0:02:24.8]} 21... Qf6 {[%clk 0:02:28.5]} 22.
Qg3 {[%clk 0:02:18.4]} 22... Rfe8 {[%clk 0:02:06.3]} 23. f4 {[%clk 0:02:17]}
23... b5 {[%clk 0:01:54]} 24. axb5 {[%clk 0:02:15.4]} 24... Bxb5 {[%clk
0:01:54.9]} 25. Bc2 {[%clk 0:02:14.4]} 25... Re7 {[%clk 0:01:48]} 26. Rae1
{[%clk 0:02:11.4]} 26... Rb7 {[%clk 0:01:40.6]} 27. f5 {[%clk 0:02:04.4]} 27...
Bd7 {[%clk 0:01:38.1]} 28. fxe6 {[%clk 0:01:53.6]} 28... Bxe6 {[%clk 0:01:39]}
29. Rf1 {[%clk 0:01:53.5]} 29... Qh6 {[%clk 0:01:36.4]} 30. b4 {[%clk
0:01:48.6]} 30... Rbc7 {[%clk 0:01:32.9]} 31. Re3 {[%clk 0:01:48.5]} 31... Qh5
{[%clk 0:01:09.6]} 32. Rf4 {[%clk 0:01:44.6]} 32... g5 {[%clk 0:00:22.1]} 33.
Rf6 {[%clk 0:01:42.3]} 33... Qh4 {[%clk 0:00:14.7]} 34. Qe5 {[%clk 0:00:44.6]}
34... a5 {[%clk 0:00:04.2]} 35. bxa5 {[%clk 0:00:41.5]} 35... Ra7 {[%clk
0:00:04.5]} 36. Rxe6 {[%clk 0:00:40.7]} 36... Rxa5 {[%clk 0:00:03.8]} 37. Re8+
{[%clk 0:00:38.4]} 37... Rxe8 {[%clk 0:00:04.1]} 38. Qxe8+ {[%clk 0:00:39.3]}
38... Kg7 {[%clk 0:00:05]} 39. Qe5+ {[%clk 0:00:39.5]} 39... Kg8 {[%clk
0:00:01.5]} 40. Rg3 {[%clk 0:00:33.9]} 40... Ra1+ {[%clk 0:00:01.4]} 41. Kf2
{[%clk 0:00:33.9]} 41... Ra2 {[%clk 0:00:01.3]} 42. Qxg5+ {[%clk 0:00:30.8]} 1-0

[Event "Early-Titled-Tuesday-Blitz-May-07-2024"]
[Site "Chess.com"]
[Date "2024.05.07"]
[Round "3"]
[White "GothamChess"]
[Black "alexrustemov"]
[Result "0-1"]
[WhiteElo "2719"]
[BlackElo "2960"]
[TimeControl "180+1"]
[EndTime "8:31:57 PDT"]
[Termination "alexrustemov won by checkmate"]

1. e4 {[%clk 0:03:00.9]} 1... e6 {[%clk 0:03:00.2]} 2. b3 {[%clk 0:02:56.3]}
2... d5 {[%clk 0:02:59.6]} 3. Bb2 {[%clk 0:02:56.6]} 3... Nf6 {[%clk 0:02:59.5]}
4. e5 {[%clk 0:02:54.9]} 4... Nfd7 {[%clk 0:02:59.3]} 5. Qg4 {[%clk 0:02:55.3]}
5... c5 {[%clk 0:02:59]} 6. f4 {[%clk 0:02:55.6]} 6... Nc6 {[%clk 0:02:59.1]} 7.
Nf3 {[%clk 0:02:55.5]} 7... a6 {[%clk 0:02:54.8]} 8. Nc3 {[%clk 0:02:48.9]} 8...
b5 {[%clk 0:02:48.7]} 9. a4 {[%clk 0:02:48.1]} 9... b4 {[%clk 0:02:45]} 10. Nd1
{[%clk 0:02:47.4]} 10... g6 {[%clk 0:02:42.2]} 11. h4 {[%clk 0:02:46.3]} 11...
h5 {[%clk 0:02:41.9]} 12. Qh3 {[%clk 0:02:43.1]} 12... Ne7 {[%clk 0:02:42.2]}
13. Ng5 {[%clk 0:02:36.5]} 13... Nf5 {[%clk 0:02:38.4]} 14. Ne3 {[%clk
0:02:34.9]} 14... Bb7 {[%clk 0:02:30.1]} 15. Bd3 {[%clk 0:02:22.6]} 15... d4
{[%clk 0:02:21.7]} 16. Nxf5 {[%clk 0:02:02.9]} 16... gxf5 {[%clk 0:02:21.4]} 17.
a5 {[%clk 0:01:54.5]} 17... Be7 {[%clk 0:02:11.9]} 18. Bc4 {[%clk 0:01:29.9]}
18... Nf8 {[%clk 0:02:09.2]} 19. c3 {[%clk 0:01:26.7]} 19... Ng6 {[%clk
0:02:00.9]} 20. Rf1 {[%clk 0:01:26.2]} 20... Qd7 {[%clk 0:01:47.8]} 21. cxb4
{[%clk 0:01:25.1]} 21... cxb4 {[%clk 0:01:47.8]} 22. g3 {[%clk 0:01:21.6]} 22...
Kf8 {[%clk 0:01:42.8]} 23. Qh2 {[%clk 0:01:18.5]} 23... Kg7 {[%clk 0:01:43]} 24.
Qf2 {[%clk 0:01:13.6]} 24... Rad8 {[%clk 0:01:41.2]} 25. Qe2 {[%clk 0:01:09.2]}
25... d3 {[%clk 0:01:40.2]} 26. Qe3 {[%clk 0:01:08.1]} 26... Bd5 {[%clk
0:01:38.4]} 27. Qxd3 {[%clk 0:01:04.4]} 27... Qc6 {[%clk 0:01:31.3]} 28. Qe2
{[%clk 0:00:46.3]} 28... Bxg5 {[%clk 0:01:27.1]} 29. fxg5 {[%clk 0:00:43]} 29...
f4 {[%clk 0:01:23.7]} 30. Rc1 {[%clk 0:00:27.3]} 30... fxg3 {[%clk 0:01:17.4]}
31. Bd3 {[%clk 0:00:24]} 31... Qd7 {[%clk 0:01:12.1]} 32. Rf6 {[%clk 0:00:20]}
32... Bxb3 {[%clk 0:01:05.2]} 33. Bxg6 {[%clk 0:00:17.7]} 33... fxg6 {[%clk
0:01:04.1]} 34. Qe3 {[%clk 0:00:14.7]} 34... g2 {[%clk 0:00:57.4]} 35. Ke2
{[%clk 0:00:12]} 35... Bc4+ {[%clk 0:00:52.6]} 36. Rxc4 {[%clk 0:00:12.3]} 36...
g1=Q {[%clk 0:00:42.6]} 37. Qxg1 {[%clk 0:00:09.3]} 37... Qxd2+ {[%clk 0:00:35]}
38. Kf3 {[%clk 0:00:02.5]} 38... Rd3+ {[%clk 0:00:29.6]} 39. Ke4 {[%clk
0:00:02.4]} 39... Qe2+ {[%clk 0:00:19.3]} 40. Kf4 {[%clk 0:00:02.5]} 40... Qf3#
{[%clk 0:00:17.5]} 0-1

[Event "Early-Titled-Tuesday-Blitz-May-07-2024"]
[Site "Chess.com"]
[Date "2024.05.07"]
[Round "3"]
[White "Shota_Azaladze"]
[Black "Szparu"]
[Result "1-0"]
[WhiteElo "2727"]
[BlackElo "2940"]
[TimeControl "180+1"]
[EndTime "8:31:57 PDT"]
[Termination "Shota_Azaladze won by checkmate"]

1. Nf3 {[%clk 0:02:59.4]} 1... d5 {[%clk 0:02:59.9]} 2. g3 {[%clk 0:02:59.9]}
2... c6 {[%clk 0:03:00]} 3. Bg2 {[%clk 0:03:00.3]} 3... Bg4 {[%clk 0:03:00.3]}
4. O-O {[%clk 0:03:01]} 4... Nd7 {[%clk 0:03:00.5]} 5. d3 {[%clk 0:03:01.4]}
5... e5 {[%clk 0:02:58.9]} 6. Nbd2 {[%clk 0:03:01.5]} 6... Bd6 {[%clk
0:02:58.4]} 7. e4 {[%clk 0:03:02.1]} 7... Ngf6 {[%clk 0:02:58.3]} 8. h3 {[%clk
0:03:02]} 8... Bh5 {[%clk 0:02:54.6]} 9. exd5 {[%clk 0:02:52.8]} 9... cxd5
{[%clk 0:02:54.3]} 10. c4 {[%clk 0:02:52.5]} 10... O-O {[%clk 0:02:47.7]} 11.
cxd5 {[%clk 0:02:52]} 11... Nxd5 {[%clk 0:02:31.8]} 12. Qb3 {[%clk 0:02:51.1]}
12... N5b6 {[%clk 0:02:27.3]} 13. Ne4 {[%clk 0:02:50.4]} 13... Be7 {[%clk
0:02:20.7]} 14. a4 {[%clk 0:02:44.2]} 14... a5 {[%clk 0:02:07.6]} 15. Be3 {[%clk
0:02:43.4]} 15... Bb4 {[%clk 0:02:00.2]} 16. d4 {[%clk 0:02:29.2]} 16... Re8
{[%clk 0:01:49.8]} 17. dxe5 {[%clk 0:02:18.1]} 17... Nxe5 {[%clk 0:01:50]} 18.
Nxe5 {[%clk 0:02:12.2]} 18... Rxe5 {[%clk 0:01:49.8]} 19. g4 {[%clk 0:02:03]}
19... Bg6 {[%clk 0:01:49.8]} 20. Rfd1 {[%clk 0:02:03.3]} 20... Qe7 {[%clk
0:01:50.1]} 21. Ng3 {[%clk 0:01:38.9]} 21... Nd7 {[%clk 0:01:50.2]} 22. Bf4
{[%clk 0:01:32.9]} 22... Nc5 {[%clk 0:01:48.5]} 23. Qc4 {[%clk 0:01:29.9]} 23...
Re6 {[%clk 0:01:42.5]} 24. Nf5 {[%clk 0:01:29]} 24... Qe8 {[%clk 0:01:13.1]} 25.
Nd4 {[%clk 0:01:15.3]} 25... Rf6 {[%clk 0:01:06.1]} 26. Bg3 {[%clk 0:01:09.7]}
26... h6 {[%clk 0:00:34.1]} 27. Nb5 {[%clk 0:01:06.8]} 27... Rd8 {[%clk
0:00:22.7]} 28. Nc7 {[%clk 0:01:02.8]} 28... Qf8 {[%clk 0:00:16.3]} 29. Rxd8
{[%clk 0:00:57.4]} 29... Qxd8 {[%clk 0:00:16.1]} 30. Nd5 {[%clk 0:00:58.3]}
30... Bd3 {[%clk 0:00:14]} 31. Nxf6+ {[%clk 0:00:57]} 31... Qxf6 {[%clk
0:00:14.9]} 32. Qf4 {[%clk 0:00:54]} 32... Qxb2 {[%clk 0:00:14.2]} 33. Rd1
{[%clk 0:00:54.3]} 33... Qc2 {[%clk 0:00:12.5]} 34. Rc1 {[%clk 0:00:53.3]} 34...
Qxa4 {[%clk 0:00:09.8]} 35. Bd5 {[%clk 0:00:52.5]} 35... Qd7 {[%clk 0:00:09.3]}
36. Ba2 {[%clk 0:00:47.4]} 36... Bg6 {[%clk 0:00:09.3]} 37. h4 {[%clk
0:00:43.5]} 37... Nd3 {[%clk 0:00:09.5]} 38. Qb8+ {[%clk 0:00:41.3]} 38... Kh7
{[%clk 0:00:09.4]} 39. Rc8 {[%clk 0:00:42.1]} 39... Be4 {[%clk 0:00:06]} 40. h5
{[%clk 0:00:42]} 40... g6 {[%clk 0:00:03.5]} 41. hxg6+ {[%clk 0:00:30.5]} 41...
Kxg6 {[%clk 0:00:04.4]} 42. Rg8+ {[%clk 0:00:27.6]} 42... Kf6 {[%clk 0:00:03.5]}
43. Bh4# {[%clk 0:00:26]} 1-0